{"text_format":"1","workbook":"xlsx","n_sheets":1,"sheets":["سبتمبر2023"],"not_rendered":{"charts":0,"images":0,"macros":1,"external_links":0,"defined_names":0,"comments":0,"pivot_tables":0},"unopened":[],"bounds":{"document_bytes":16777216,"sheet_cells":100000,"rows_first":2000,"rows_last":500,"rows_between":2000,"halvings":0,"cell_chars":16384,"cell_head_chars":4096},"cells_cut":0,"cells_raw":0,"read":"whole","date_system":"1900"}

{"sheet":"سبتمبر2023","index":0,"n_rows":199,"n_cols":13,"rows_kept":199,"cut":false,"hidden":false,"merged":[[0,7,2,7],[0,8,2,8],[0,9,2,9],[0,10,0,11],[0,12,2,12],[1,2,2,2],[1,3,2,3],[1,10,2,10],[1,11,2,11],[0,0,2,0],[0,1,2,1],[0,2,0,3],[0,4,2,4],[0,5,2,5],[0,6,2,6]]}
["رقم السيارة","نوع السيارة","تاريخ ووقت تسليم السيارة",null,"جهة الطالبة للحركة","الغرض من الاستخدام والحركة","إسم مستلم السيارة","قراءة العداد قبل المهمة","قراءة العداد بعد المهمة","المسافة المقطوعة","تاريخ ووقت الرجوع السيارة",null,"الموظف المعني بالتسجيل"]
[null,null,"التاريخ","الوقت",null,null,null,null,null,null,"التاريخ","الوقت"]
[]
[97,{"$f":"IF(A4=65,\"بيكاب نيسان\",IF(A4=93,\"برادو\",IF(A4=96,\"جالنت\",IF(A4=97,\"برادو\",IF(A4=111,\"برادو\",IF(A4=116,\"نيسان بافندر\",IF(A4=118,\"كرولا\",IF(A4=125,\"نيسان بافندر\",IF(A4=134,\"بيكاب مستوبيشي\",IF(A4=153,\"باص نيسان\",IF(A4=162,\"ابيكاء شفروليه\",IF(A4=233,\"كيا سوبرتاج\",IF(A4=267,\"باص تويوتا\",\"\")))))))))))))","v":"برادو"},"2023-08-17",45153.475557523147,null,null,null,null,1,1,"2023-08-17",45153.47385613426]
[93,{"$f":"IF(A5=65,\"بيكاب نيسان\",IF(A5=93,\"برادو\",IF(A5=96,\"جالنت\",IF(A5=97,\"برادو\",IF(A5=111,\"برادو\",IF(A5=116,\"نيسان بافندر\",IF(A5=118,\"كرولا\",IF(A5=125,\"نيسان بافندر\",IF(A5=134,\"بيكاب مستوبيشي\",IF(A5=153,\"باص نيسان\",IF(A5=162,\"ابيكاء شفروليه\",IF(A5=233,\"كيا سوبرتاج\",IF(A5=267,\"باص تويوتا\",\"\")))))))))))))","v":"برادو"},"2023-08-17",45153.475590509261,null,null,null,null,2,2,"2023-08-17",45153.47698472222]
[111,"برادو","2023-08-17",45153.475608912035,null,null,null,null,3,3,"2023-08-17",45153.477000810184]
[125,"نيسان بافندر","2023-08-17",45153.475621990743,null,null,null,null,4,4,"2023-08-17",45153.477011226852]
[96,"جالنت","2023-08-17",45153.481951967595,null,null,null,null,5,5,"2023-08-17",45153.482038194445]
[96,"جالنت","2023-08-17",45153.488300115743,null,null,null,null,6,6,"2023-08-17",45153.499281481483]
[267,"باص تويوتا","2023-08-17",45153.515509027777,null,null,null,null,7,7,"2023-08-17",45153.515850347219]
[233,"كيا سوبرتاج","2023-08-17",45153.550864814817,null,null,null,null,8,8,"2023-08-17",45153.551068749999]
[97,"برادو",null,null,null,null,null,null,9,9,"2023-08-17",45154.329978240741]
[111,"برادو","2023-08-17",45154.329896875002,null,null,null,null,9,9,"2023-08-17",45154.330009606485]
[93,"برادو",{"$f":"IF(A14>1,TODAY(),\"\")","v":"2023-08-17"},45154.390979976852,null,null,null,null,10,{"$f":"I14-H14","v":10},{"$f":"IF(J14>0,TODAY(),\"\")","v":"2023-08-17"},{"$f":"IF(K14<>\"\",IF(L14=\"\",NOW(),L14),\"\")","v":45154.391042824071}]
[97,"برادو","2023-08-17",null,null,null,null,null,null,0,"",""]
[96,"جالنت","2023-08-17",null,null,null,null,null,null,0,"",""]
[125,"نيسان بافندر","2023-08-17",null,null,null,null,null,null,0,"",""]
[118,"كرولا","2023-08-17",null,null,null,null,null,14,14,"2023-08-17",45155.553975115741]
[null,"",null,null,null,null,null,null,null,0]
[null,"",null,null,null,null,null,null,null,0]
[null,"","2023-08-17",45155.523981828701,null,null,null,null,null,0]
[null,"","2023-08-17",45155.524091782405,null,null,null,null,null,0]
[null,"",null,null,null,null,null,null,null,0]
[null,"",null,null,null,null,null,null,null,0]
[null,"",null,null,null,null,null,null,null,0]
[null,"",null,null,null,null,null,null,null,0]
[null,"",null,null,null,null,null,null,null,0]
[null,"",null,null,null,null,null,null,null,0]
[null,"",null,null,null,null,null,null,null,0]
[null,"",null,null,null,null,null,null,null,0]
[null,"",null,null,null,null,null,null,null,0]
[null,"",null,null,null,null,null,null,null,0]
[null,"",null,null,null,null,null,null,null,0]
[null,"",null,null,null,null,null,null,null,0]
[null,"",null,null,null,null,null,null,null,0]
[null,"",null,null,null,null,null,null,null,0]
[null,"",null,null,null,null,null,null,null,0]
[null,"",null,null,null,null,null,null,null,0]
[null,"",null,null,null,null,null,null,null,0]
[null,"",null,null,null,null,null,null,null,0]
[null,"",null,null,null,null,null,null,null,0]
[null,"",null,null,null,null,null,null,null,0]
[null,"",null,null,null,null,null,null,null,0]
[null,"",null,null,null,null,null,null,null,0]
[null,"",null,null,null,null,null,null,null,0]
[null,"",null,null,null,null,null,null,null,0]
[null,"",null,null,null,null,null,null,null,0]
[null,"",null,null,null,null,null,null,null,0]
[null,"",null,null,null,null,null,null,null,0]
[null,"",null,null,null,null,null,null,null,0]
[null,"",null,null,null,null,null,null,null,0]
[null,"",null,null,null,null,null,null,null,0]
[null,"",null,null,null,null,null,null,null,0]
[null,"",null,null,null,null,null,null,null,0]
[null,"",null,null,null,null,null,null,null,0]
[null,"",null,null,null,null,null,null,null,0]
[null,"",null,null,null,null,null,null,null,0]
[null,"",null,null,null,null,null,null,null,0]
[null,"",null,null,null,null,null,null,null,0]
[null,"",null,null,null,null,null,null,null,0]
[null,"",null,null,null,null,null,null,null,0]
[null,"",null,null,null,null,null,null,null,0]
[null,"",null,null,null,null,null,null,null,0]
[null,"",null,null,null,null,null,null,null,0]
[null,"",null,null,null,null,null,null,null,0]
[null,"",null,null,null,null,null,null,null,0]
[null,"",null,null,null,null,null,null,null,0]
[null,"",null,null,null,null,null,null,null,0]
[null,{"$f":"IF(A69=65,\"بيكاب نيسان\",IF(A69=93,\"برادو\",IF(A69=96,\"جالنت\",IF(A69=97,\"برادو\",IF(A69=111,\"برادو\",IF(A69=116,\"نيسان بافندر\",IF(A69=118,\"كرولا\",IF(A69=125,\"نيسان بافندر\",IF(A69=134,\"بيكاب مستوبيشي\",IF(A69=153,\"باص نيسان\",IF(A69=162,\"ابيكاء شفروليه\",IF(A69=233,\"كيا سوبرتاج\",IF(A69=267,\"باص تويوتا\",\"\")))))))))))))","v":""},null,null,null,null,null,null,null,0]
[null,"",null,null,null,null,null,null,null,{"$f":"I70-H70","v":0}]
[null,"",null,null,null,null,null,null,null,0]
[null,"",null,null,null,null,null,null,null,0]
[null,"",null,null,null,null,null,null,null,0]
[null,"",null,null,null,null,null,null,null,0]
[null,"",null,null,null,null,null,null,null,0]
[null,"",null,null,null,null,null,null,null,0]
[null,"",null,null,null,null,null,null,null,0]
[null,"",null,null,null,null,null,null,null,0]
[null,"",null,null,null,null,null,null,null,0]
[null,"",null,null,null,null,null,null,null,0]
[null,"",null,null,null,null,null,null,null,0]
[null,"",null,null,null,null,null,null,null,0]
[null,"",null,null,null,null,null,null,null,0]
[null,"",null,null,null,null,null,null,null,0]
[null,"",null,null,null,null,null,null,null,0]
[null,"",null,null,null,null,null,null,null,0]
[null,"",null,null,null,null,null,null,null,0]
[null,"",null,null,null,null,null,null,null,0]
[null,"",null,null,null,null,null,null,null,0]
[null,"",null,null,null,null,null,null,null,0]
[null,"",null,null,null,null,null,null,null,0]
[null,"",null,null,null,null,null,null,null,0]
[null,"",null,null,null,null,null,null,null,0]
[null,"",null,null,null,null,null,null,null,0]
[null,"",null,null,null,null,null,null,null,0]
[null,"",null,null,null,null,null,null,null,0]
[null,"",null,null,null,null,null,null,null,0]
[null,"",null,null,null,null,null,null,null,0]
[null,"",null,null,null,null,null,null,null,0]
[null,"",null,null,null,null,null,null,null,0]
[null,"",null,null,null,null,null,null,null,0]
[null,"",null,null,null,null,null,null,null,0]
[null,"",null,null,null,null,null,null,null,0]
[null,"",null,null,null,null,null,null,null,0]
[null,"",null,null,null,null,null,null,null,0]
[null,"",null,null,null,null,null,null,null,0]
[null,"",null,null,null,null,null,null,null,0]
[null,"",null,null,null,null,null,null,null,0]
[null,"",null,null,null,null,null,null,null,0]
[null,"",null,null,null,null,null,null,null,0]
[null,"",null,null,null,null,null,null,null,0]
[null,"",null,null,null,null,null,null,null,0]
[null,"",null,null,null,null,null,null,null,0]
[null,"",null,null,null,null,null,null,null,0]
[null,"",null,null,null,null,null,null,null,0]
[null,"",null,null,null,null,null,null,null,0]
[null,"",null,null,null,null,null,null,null,0]
[null,"",null,null,null,null,null,null,null,0]
[null,"",null,null,null,null,null,null,null,0]
[null,"",null,null,null,null,null,null,null,0]
[null,"",null,null,null,null,null,null,null,0]
[null,"",null,null,null,null,null,null,null,0]
[null,"",null,null,null,null,null,null,null,0]
[null,"",null,null,null,null,null,null,null,0]
[null,"",null,null,null,null,null,null,null,0]
[null,"",null,null,null,null,null,null,null,0]
[null,"",null,null,null,null,null,null,null,0]
[null,"",null,null,null,null,null,null,null,0]
[null,"",null,null,null,null,null,null,null,0]
[null,"",null,null,null,null,null,null,null,0]
[null,"",null,null,null,null,null,null,null,0]
[null,"",null,null,null,null,null,null,null,0]
[null,{"$f":"IF(A133=65,\"بيكاب نيسان\",IF(A133=93,\"برادو\",IF(A133=96,\"جالنت\",IF(A133=97,\"برادو\",IF(A133=111,\"برادو\",IF(A133=116,\"نيسان بافندر\",IF(A133=118,\"كرولا\",IF(A133=125,\"نيسان بافندر\",IF(A133=134,\"بيكاب مستوبيشي\",IF(A133=153,\"باص نيسان\",IF(A133=162,\"ابيكاء شفروليه\",IF(A133=233,\"كيا سوبرتاج\",IF(A133=267,\"باص تويوتا\",\"\")))))))))))))","v":""},null,null,null,null,null,null,null,0]
[null,"",null,null,null,null,null,null,null,{"$f":"I134-H134","v":0}]
[null,"",null,null,null,null,null,null,null,0]
[null,"",null,null,null,null,null,null,null,0]
[null,"",null,null,null,null,null,null,null,0]
[null,"",null,null,null,null,null,null,null,0]
[null,"",null,null,null,null,null,null,null,0]
[null,"",null,null,null,null,null,null,null,0]
[null,"",null,null,null,null,null,null,null,0]
[null,"",null,null,null,null,null,null,null,0]
[null,"",null,null,null,null,null,null,null,0]
[null,"",null,null,null,null,null,null,null,0]
[null,"",null,null,null,null,null,null,null,0]
[null,"",null,null,null,null,null,null,null,0]
[null,"",null,null,null,null,null,null,null,0]
[null,"",null,null,null,null,null,null,null,0]
[null,"",null,null,null,null,null,null,null,0]
[null,"",null,null,null,null,null,null,null,0]
[null,"",null,null,null,null,null,null,null,0]
[null,"",null,null,null,null,null,null,null,0]
[null,"",null,null,null,null,null,null,null,0]
[null,"",null,null,null,null,null,null,null,0]
[null,"",null,null,null,null,null,null,null,0]
[null,"",null,null,null,null,null,null,null,0]
[null,"",null,null,null,null,null,null,null,0]
[null,"",null,null,null,null,null,null,null,0]
[null,"",null,null,null,null,null,null,null,0]
[null,"",null,null,null,null,null,null,null,0]
[null,"",null,null,null,null,null,null,null,0]
[null,"",null,null,null,null,null,null,null,0]
[null,"",null,null,null,null,null,null,null,0]
[null,"",null,null,null,null,null,null,null,0]
[null,"",null,null,null,null,null,null,null,0]
[null,"",null,null,null,null,null,null,null,0]
[null,"",null,null,null,null,null,null,null,0]
[null,"",null,null,null,null,null,null,null,0]
[null,"",null,null,null,null,null,null,null,0]
[null,"",null,null,null,null,null,null,null,0]
[null,"",null,null,null,null,null,null,null,0]
[null,"",null,null,null,null,null,null,null,0]
[null,"",null,null,null,null,null,null,null,0]
[null,"",null,null,null,null,null,null,null,0]
[null,"",null,null,null,null,null,null,null,0]
[null,"",null,null,null,null,null,null,null,0]
[null,"",null,null,null,null,null,null,null,0]
[null,"",null,null,null,null,null,null,null,0]
[null,"",null,null,null,null,null,null,null,0]
[null,"",null,null,null,null,null,null,null,0]
[null,"",null,null,null,null,null,null,null,0]
[null,"",null,null,null,null,null,null,null,0]
[null,"",null,null,null,null,null,null,null,0]
[null,"",null,null,null,null,null,null,null,0]
[null,"",null,null,null,null,null,null,null,0]
[null,"",null,null,null,null,null,null,null,0]
[null,"",null,null,null,null,null,null,null,0]
[null,"",null,null,null,null,null,null,null,0]
[null,"",null,null,null,null,null,null,null,0]
[null,"",null,null,null,null,null,null,null,0]
[null,"",null,null,null,null,null,null,null,0]
[null,"",null,null,null,null,null,null,null,0]
[null,"",null,null,null,null,null,null,null,0]
[null,"",null,null,null,null,null,null,null,0]
[null,"",null,null,null,null,null,null,null,0]
[null,"",null,null,null,null,null,null,null,0]
[null,{"$f":"IF(A197=65,\"بيكاب نيسان\",IF(A197=93,\"برادو\",IF(A197=96,\"جالنت\",IF(A197=97,\"برادو\",IF(A197=111,\"برادو\",IF(A197=116,\"نيسان بافندر\",IF(A197=118,\"كرولا\",IF(A197=125,\"نيسان بافندر\",IF(A197=134,\"بيكاب مستوبيشي\",IF(A197=153,\"باص نيسان\",IF(A197=162,\"ابيكاء شفروليه\",IF(A197=233,\"كيا سوبرتاج\",IF(A197=267,\"باص تويوتا\",\"\")))))))))))))","v":""},null,null,null,null,null,null,null,0]
[null,""]
[null,""]